Workbook

Sheet КИТАЕВ склерометр
B1: Кубы | P1: Кубы | S1: =IF(P1="Отрыв со скалыванием",2.5,"") ->  | T1: =IF(P1="Кубы",10,"") -> 10 | U1: =IF(P1="Кубы",0.95,"") -> 0.95 | V1: =IF(P1="Кубы",100,"") -> 100
B2: Отрыв со скалыванием
B4: № | C4: Значение склерометра | M4: max | N4: min | O4: Среднее значение по склерометру | Q4: Разделение на группы | R4: Значение прочности кубов (КН), показания отрыва | T4: По градуировочной зависимости RiH | V4: Корректировка путем отбраковки RiH-Riф/Sт | X4: Примечание | AZ4: Для построения графика
AA6: ДО ОТБРАКОВКИ | AK6: ПОСЛЕ ОТБРАКОВКИ | AV6: Коэффициент корреляции град.зависимости | AZ6: № | BA6: Среднее значение по склерометру | BB6: Значение ПИБ | BC6: Отбракованные показания
R7: Показания | S7: Показания Riф (Мпа) | T7: До отбраковки | U7: После отбраковки | V7: До отбраковки | W7: После отбраковки | AA7: Промежуточные данные для расчета а1 | AI7: Sт | AK7: Промежуточные данные для расчета а1 | AS7: Sт | AV7: =U58 -> 38.36730638 | BB7: Показания Riф (Мпа)
B8: 1 | C8: 22 | E8: 24 | F8: 20 | G8: 21 | H8: 21 | I8: 22 | K8: 25 | L8: 24 | M8: =IFERROR(MAX(C8:L8)-AVERAGE(C8:L8),"") -> 2.625 | N8: =IFERROR(AVERAGE(C8:L8)-MIN(C8:L8),"") -> 2.375 | O8: =IFERROR(AVERAGE(C8:L8),"") -> 22.375 | Q8: =IFERROR(IF(SUM(O8:P8)=0,"",IF(SUM(O8:P8)<=$O$58,1,2)),"") -> 1 | R8: 349.8 | S8: =IF(R8="","",(IF($P$1=$B$1,((R8*$T$1)/$V$1)*$U$1,IF($P$1=$B$2,R8*$S$1,"")))) -> 33.231 | T8: =IF(SUM(O8:P8)=0,"",$AF$8*SUM(O8:P8)+($AE$10)) -> 37.26488492 | U8: =IF(SUM(O8:P8)=0,"",$AP$8*SUM(O8:P8)+($AO$10)) -> 38.07279924 | V8: =IFERROR(((T8-S8)/$AI$58),"") -> 0.8210031736 | W8: =IFERROR(((U8-S8)/$AS$58),"") -> 0.9788176767 | X8: =IF(COUNT(V8:W8)=0,"",IF(V8>2,"Отбраковывается",IF(W8>2,"Отбраковывается",IF(V8<-2,"Отбраковывается",IF(W8<-2,"Отбраковывается",""))))) ->  | Y8: 1 | AA8: 1 | AB8: =IF(SUM(O8:P8)=0,"",(SUM(O8:P8)-$O$58)*(S8-$S$58)) -> 40.14830039 | AC8: =IF(SUM(O8:P8)=0,"",POWER((SUM(O8:P8)-$P$58),2)) -> 500.640625 | AD8: а1= | AE8: =IF(AB58=0,"",AB58) -> 420.0580424 | AF8: =IFERROR(AE8/AE9,"") -> 0.01227736201 | AH8: 1 | AI8: =IFERROR(POWER(S8-T8,2),"") -> 16.27222756 | AK8: 1 | AL8: =IF(SUM(O8:P8)=0,"",(SUM(O8:P8)-$P$58*(S8-$S$58))) -> 22.375 | AM8: =IF(SUM(O8:P8)=0,"",POWER((SUM(O8:P8)-$P$58),2)) -> 500.640625 | AN8: а1= | AO8: =IF(AL58=0,"",AL58) -> 1053.889286 | AP8: =IFERROR(AO8/AO9,"") -> 0.03080283907 | AR8: 1 | AS8: =IFERROR(POWER(S8-U8,2),"") -> 23.44301987 | AU8: 1 | AV8: =IFERROR((U8-$U$58)*(S8-$U$58),"") -> 1.512678926 | AW8: =IFERROR(POWER((U8-$U$58),2),"") -> 0.08673445812 | AX8: =IFERROR(POWER((S8-$U$58),2),"") -> 26.38164326 | AZ8: 1 | BA8: =IF(SUM(O8:P8)=0,"",SUM(O8:P8)) -> 22.375 | BB8: =IF(S8=0,"",S8) -> 33.231 | BC8: =IF(X8="Отбраковывается",S8,"") -> 
B9: =B8+1 -> 2 | C9: 22 | D9: 25 | F9: 24 | G9: 22 | H9: 21 | I9: 23 | J9: 20 | K9: 19 | L9: 20 | M9: =IFERROR(MAX(C9:L9)-AVERAGE(C9:L9),"") -> 3.222222222 | N9: =IFERROR(AVERAGE(C9:L9)-MIN(C9:L9),"") -> 2.777777778 | O9: =IFERROR(AVERAGE(C9:L9),"") -> 21.77777778 | Q9: =IFERROR(IF(SUM(O9:P9)=0,"",IF(SUM(O9:P9)<=$O$58,1,2)),"") -> 1 | R9: 346.1 | S9: =IF(R9="","",(IF($P$1=$B$1,((R9*$T$1)/$V$1)*$U$1,IF($P$1=$B$2,R9*$S$1,"")))) -> 32.8795 | T9: 37.25755261 | U9: =IF(SUM(O9:P9)=0,"",$AP$8*SUM(O9:P9)+($AO$10)) -> 38.0544031 | V9: =IFERROR(((T9-S9)/$AI$58),"") -> 0.8910504775 | W9: =IFERROR(((U9-S9)/$AS$58),"") -> 1.046157922 | Y9: =Y8+1 -> 2 | AA9: =AA8+1 -> 2 | AB9: =IF(SUM(O9:P9)=0,"",(SUM(O9:P9)-$O$58)*(S9-$S$58)) -> 46.23663573 | AC9: 474.2716049 | AE9: =IF(AC58=0,"",AC58) -> 34214.03084 | AH9: =AH8+1 -> 2 | AI9: 19.16734464 | AK9: =AK8+1 -> 2 | AL9: 21.77777778 | AM9: 474.2716049 | AO9: =IF(AM58=0,"",AM58) -> 34214.03084 | AR9: =AR8+1 -> 2 | AS9: 26.77962208 | AU9: =AU8+1 -> 2 | AV9: 1.717152642 | AW9: 0.09790846541 | AX9: 30.1160189 | AZ9: =AZ8+1 -> 2 | BA9: 21.77777778 | BB9: =IF(S9=0,"",S9) -> 32.8795
B10: =B9+1 -> 3 | E10: 28 | F10: 28 | H10: 26 | I10: 26 | J10: 29 | K10: 27 | M10: 1.666666667 | N10: 1.333333333 | O10: 27.33333333 | Q10: 1 | R10: 374.9 | S10: 35.6155 | T10: 37.32576017 | U10: 38.22552998 | V10: 0.3480835617 | W10: 0.5276434147 | Y10: =Y9+1 -> 3 | AA10: =AA9+1 -> 3 | AB10: 8.327563436 | AC10: 747.1111111 | AD10: а0= | AE10: =IFERROR(S58-AF8*O58,"") -> 36.99017895 | AH10: =AH9+1 -> 3 | AI10: 2.924989864 | AK10: =AK9+1 -> 3 | AL10: 27.33333333 | AM10: 747.1111111 | AN10: а0= | AO10: =IFERROR(S58-AP8*P58,"") -> 37.38358571 | AR10: =AR9+1 -> 3 | AS10: 6.812256508 | AU10: =AU9+1 -> 3 | AV10: 0.3901412045 | AW10: 0.0201005478 | AX10: 7.572438369 | AZ10: =AZ9+1 -> 3 | BA10: 27.33333333 | BB10: 35.6155
B11: =B10+1 -> 4 | D11: 30 | F11: 28 | H11: 27 | I11: 26 | K11: 27 | L11: 32 | M11: 3.666666667 | N11: 2.333333333 | O11: 28.33333333 | Q11: 1 | R11: 353.2 | S11: 33.554 | T11: 37.33803754 | U11: 38.25633282 | V11: 0.7701525668 | W11: 0.950623159 | Y11: =Y10+1 -> 4 | AA11: =AA10+1 -> 4 | AB11: 14.20750248 | AC11: 802.7777778 | AH11: =AH10+1 -> 4 | AI11: 14.31894008 | AK11: =AK10+1 -> 4 | AL11: 28.33333333 | AM11: 802.7777778 | AR11: =AR10+1 -> 4 | AS11: 22.11193396 | AU11: =AU10+1 -> 4 | AV11: 0.5341497527 | AW11: 0.01231513139 | AX11: 23.16791834 | AZ11: =AZ10+1 -> 4 | BA11: 28.33333333 | BB11: 33.554
B12: 5 | C12: 34 | E12: 30 | F12: 29 | H12: 30 | I12: 31 | J12: 34 | L12: 34 | M12: 2.285714286 | N12: 2.714285714 | O12: 31.71428571 | Q12: 1 | R12: 367.7 | S12: 34.9315 | T12: 37.37954671 | U12: 38.36047575 | V12: 0.4982428006 | W12: 0.6932014144 | Y12: 5 | AA12: 5 | AB12: 0.8066861574 | AC12: 1005.795918 | AD12: Уровнение градуировочной зависимости | AH12: 5 | AI12: 5.992932708 | AK12: 5 | AL12: 31.71428571 | AM12: 1005.795918 | AN12: Уровнение градуировочной зависимости | AR12: 5 | AS12: 11.75787472 | AU12: 5 | AV12: 0.02346872068 | AW12: 4.665750036e-05 | AX12: 11.8047655 | AZ12: 5 | BA12: 31.71428571 | BB12: 34.9315
B13: 6 | C13: 36 | E13: 35 | F13: 38 | G13: 37 | H13: 33 | I13: 35 | J13: 35 | L13: 35 | M13: 2.5 | N13: 2.5 | O13: 35.5 | Q13: 2 | R13: 492 | S13: 46.74 | T13: 37.4260253 | U13: 38.4770865 | V13: -1.895642275 | W13: -1.670429813 | Y13: 6 | AA13: 6 | AB13: 32.34264187 | AC13: 1260.25 | AH13: 6 | AI13: 86.75012476 | AK13: 6 | AL13: 35.5 | AM13: 1260.25 | AR13: 6 | AS13: 68.27573949 | AU13: 6 | AV13: 0.919155296 | AW13: 0.01205167438 | AX13: 70.10199841 | AZ13: 6 | BA13: 35.5 | BB13: 46.74
B14: 7 | C14: 31 | E14: 35 | F14: 34 | G14: 37 | H14: 34 | I14: 31 | J14: 30 | K14: 33 | M14: 3.875 | N14: 3.125 | O14: 33.125 | Q14: 2 | R14: 517 | S14: 49.115 | V14: =IFERROR(((T14-S14)/$AI$58),"") -> -9.996212499 | W14: -9.929083761 | X14: Отбраковывается | Y14: 7 | AA14: 7 | AD14: ="Rн = " & FIXED( AF8,2) & " * H + " & FIXED(AE10,2) -> Rн = 0,01 * H + 36,99 | AH14: 7 | AK14: 7 | AN14: ="Rн = " & FIXED(AP8,2) & " * H + " & FIXED(AO10,2) -> Rн = 0,03 * H + 37,38 | AR14: 7 | AU14: 7 | AZ14: 7 | BA14: 33.125 | BB14: 49.115 | BC14: 49.115
B15: 8 | D15: 32 | F15: 31 | H15: 37 | I15: 36 | J15: 34 | K15: 33 | L15: 36 | M15: 2.857142857 | N15: 3.142857143 | O15: 34.14285714 | Q15: 2 | R15: 428 | S15: 40.66 | T15: =IF(SUM(O15:P15)=0,"",$AF$8*SUM(O15:P15)+($AE$10)) -> 37.40936316 | U15: =IF(SUM(O15:P15)=0,"",$AP$8*SUM(O15:P15)+($AO$10)) -> 38.43528265 | V15: -0.6615912975 | W15: -0.4497486497 | Y15: 8 | AA15: 8 | AB15: =IF(SUM(O15:P15)=0,"",(SUM(O15:P15)-$O$58)*(S15-$S$58)) -> 6.879132688 | AC15: =IF(SUM(O15:P15)=0,"",POWER((SUM(O15:P15)-$P$58),2)) -> 1165.734694 | AH15: 8 | AI15: 10.56663984 | AK15: 8 | AL15: =IF(SUM(O15:P15)=0,"",(SUM(O15:P15)-$P$58*(S15-$S$58))) -> 34.14285714 | AM15: =IF(SUM(O15:P15)=0,"",POWER((SUM(O15:P15)-$P$58),2)) -> 1165.734694 | AR15: 8 | AS15: 4.949367296 | AU15: 8 | AV15: =IFERROR((U15-$U$58)*(S15-$U$58),"") -> 0.1558487496 | AW15: =IFERROR(POWER((U15-$U$58),2),"") -> 0.004620772645 | AX15: =IFERROR(POWER((S15-$U$58),2),"") -> 5.256444022 | AZ15: 8 | BA15: 34.14285714 | BB15: 40.66
B16: 9 | C16: 31 | D16: 28 | E16: 28 | F16: 33 | G16: 29 | H16: 34 | I16: 32 | L16: 32 | M16: 3.125 | N16: 2.875 | O16: 30.875 | Q16: 1 | R16: 360.6 | S16: 34.257 | T16: 37.3692425 | U16: 38.33462337 | V16: 0.6334243584 | W16: 0.8243319555 | Y16: 9 | AA16: 9 | AB16: 3.652681617 | AC16: 953.265625 | AH16: 9 | AI16: 9.686053368 | AK16: 9 | AL16: 30.875 | AM16: 953.265625 | AR16: 9 | AS16: 16.62701235 | AU16: 9 | AV16: 0.1343371943 | AW16: 0.001068179297 | AX16: 16.89461856 | AZ16: 9 | BA16: 30.875 | BB16: 34.257
B17: 10 | C17: 28 | E17: 29 | F17: 32 | H17: 29 | I17: 33 | J17: 29 | K17: 35 | L17: 34 | M17: 3.875 | N17: 3.125 | O17: 31.125 | Q17: 1 | R17: 336 | S17: 31.92 | T17: 37.37231184 | U17: 38.34232408 | V17: 1.109690884 | W17: 1.298336429 | Y17: 10 | AA17: 10 | AB17: 5.017021208 | AC17: 968.765625 | AH17: 10 | AI17: 29.72770439 | AK17: 10 | AL17: 31.125 | AM17: 968.765625 | AR17: 10 | AS17: 41.24624659 | AU17: 10 | AV17: 0.161068559 | AW17: 0.0006241154429 | AX17: 41.56775959 | AZ17: 10 | BA17: 31.125 | BB17: 31.92
B18: 11 | C18: 32 | D18: 30 | E18: 30 | F18: 29 | G18: 29 | I18: 30 | J18: 30 | K18: 29 | L18: 28 | M18: 2.333333333 | N18: 1.666666667 | O18: 29.66666667 | Q18: 1 | R18: 364.6 | S18: 34.637 | T18: 37.35440735 | U18: 38.29740327 | V18: 0.5530648751 | W18: 0.73998678 | Y18: 11 | AA18: 11 | AB18: 6.527531872 | AC18: 880.1111111 | AH18: 11 | AI18: 7.384302719 | AK18: 11 | AL18: 29.66666667 | AM18: 880.1111111 | AR18: 11 | AS18: 13.39855212 | AU18: 11 | AV18: 0.2607600158 | AW18: 0.004886444727 | AX18: 13.91518571 | AZ18: 11 | BA18: 29.66666667 | BB18: 34.637
B19: 12 | C19: 28 | E19: 33 | F19: 28 | G19: 29 | H19: 35 | I19: 33 | J19: 34 | K19: 34 | L19: 34 | M19: 3 | N19: 4 | O19: 32 | Q19: 1 | R19: 410 | S19: 38.95 | T19: 37.38305453 | U19: 38.36927656 | V19: -0.3189151968 | W19: -0.1173989949 | Y19: 12 | AA19: 12 | AB19: -0.06777139359 | AC19: 1024 | AH19: 12 | AI19: 2.455318105 | AK19: 12 | AL19: 32 | AM19: 1024 | AR19: 12 | AS19: 0.3372397086 | AU19: 12 | AV19: 0.001148012237 | AW19: 3.881615496e-06 | AX19: 0.3395318515 | AZ19: 12 | BA19: 32 | BB19: 38.95
B20: 13 | C20: 30 | D20: 25 | E20: 23 | F20: 26 | H20: 30 | I20: 28 | K20: 24 | L20: 28 | M20: 3.25 | N20: 3.75 | O20: 26.75 | Q20: 1 | R20: 333.5 | S20: 31.6825 | T20: 37.31859838 | U20: 38.20756166 | V20: 1.147096347 | W20: 1.319105849 | Y20: 13 | AA20: 13 | AB20: 30.17735922 | AC20: 715.5625 | AH20: 13 | AI20: 31.76560495 | AK20: 13 | AL20: 26.75 | AM20: 715.5625 | AR20: 13 | AS20: 42.57642966 | AU20: 13 | AV20: 1.067862547 | AW20: 0.02551837669 | AX20: 44.68663638 | AZ20: 13 | BA20: 26.75 | BB20: 31.6825
B21: 14 | C21: 26 | D21: 30 | E21: 29 | H21: 28 | I21: 28 | J21: 24 | K21: 28 | L21: 28 | M21: 2.375 | N21: 3.625 | O21: 27.625 | Q21: 1 | R21: 352.6 | S21: 33.497 | T21: 37.32934107 | U21: 38.23451414 | V21: 0.7799836246 | W21: 0.9577354118 | Y21: 14 | AA21: 14 | AB21: 17.17196682 | AC21: 763.140625 | AH21: 14 | AI21: 14.68683809 | AK21: 14 | AL21: 27.625 | AM21: 763.140625 | AR21: 14 | AS21: 22.44404026 | AU21: 14 | AV21: 0.6467388908 | AW21: 0.01763377883 | AX21: 23.71988426 | AZ21: 14 | BA21: 27.625 | BB21: 33.497
B22: 15 | D22: 37 | E22: 34 | F22: 33 | G22: 33 | H22: 38 | I22: 38 | J22: 35 | K22: 32 | M22: 3 | N22: 3 | O22: 35 | Q22: 2 | R22: 447 | S22: 42.465 | T22: 37.41988662 | U22: 38.46168508 | V22: -1.026815137 | W22: -0.8093097658 | Y22: 15 | AA22: 15 | AB22: 15.02439391 | AC22: 1225 | AH22: 15 | AI22: 25.45316905 | AK22: 15 | AL22: 35 | AM22: 1225 | AR22: 15 | AS22: 16.02653034 | AU22: 15 | AV22: 0.3867349916 | AW22: 0.008907338786 | AX22: 16.79109298 | AZ22: 15 | BA22: 35 | BB22: 42.465
B23: 16 | C23: 36 | D23: 37 | E23: 36 | F23: 41 | G23: 36 | H23: 37 | I23: 42 | J23: 38 | K23: 37 | L23: 41 | M23: 3.9 | N23: 2.1 | O23: 38.1 | Q23: 2 | R23: 460 | S23: 43.7 | T23: 37.45794644 | U23: 38.55717388 | V23: -1.270424388 | W23: -1.039673242 | Y23: 16 | AA23: 16 | AB23: 38.25684555 | AC23: 1451.61 | AH23: 16 | AI23: 38.96323266 | AK23: 16 | AL23: 38.1 | AM23: 1451.61 | AR23: 16 | AS23: 26.44866047 | AU23: 16 | AV23: 1.012505205 | AW23: 0.03604966752 | AX23: 28.43762121 | AZ23: 16 | BA23: 38.1 | BB23: 43.7
B24: 17 | C24: 34 | E24: 31 | F24: 33 | G24: 37 | H24: 35 | I24: 33 | J24: 34 | K24: 33 | L24: 35 | M24: 3.111111111 | N24: 2.888888889 | O24: 33.88888889 | Q24: 2 | R24: 477 | S24: 45.315 | T24: 37.4062451 | U24: 38.4274597 | V24: -1.609642564 | W24: -1.392384496 | Y24: 17 | AA24: 17 | AB24: 14.63840525 | AC24: 1148.45679 | AH24: 17 | AI24: 62.54840402 | AK24: 17 | AL24: 33.88888889 | AM24: 1148.45679 | AR24: 17 | AS24: 47.43821132 | AU24: 17 | AV24: 0.4179268517 | AW24: 0.003618422154 | AX24: 48.2704466 | AZ24: 17 | BA24: 33.88888889 | BB24: 45.315
B25: 18 | C25: 36 | D25: 30 | E25: 30 | F25: 36 | G25: 30 | K25: 35 | M25: 3.166666667 | N25: 2.833333333 | O25: 32.83333333 | Q25: 2 | R25: 373.4 | S25: 35.473 | T25: 37.39328567 | U25: 38.3949456 | V25: 0.3908293509 | W25: 0.5907002459 | Y25: 18 | AA25: 18 | AB25: =IF(SUM(O25:P25)=0,"",(SUM(O25:P25)-$O$58)*(S25-$S$58)) -> -1.509492686 | AC25: =IF(SUM(O25:P25)=0,"",POWER((SUM(O25:P25)-$P$58),2)) -> 1078.027778 | AH25: 18 | AI25: 3.687497037 | AK25: 18 | AL25: 32.83333333 | AM25: 1078.027778 | AR25: 18 | AS25: 8.537766072 | AU25: 18 | AV25: -0.07999635392 | AW25: 0.0007639261586 | AX25: 8.377009438 | AZ25: 18 | BA25: 32.83333333 | BB25: 35.473
B26: 19 | C26: 32 | D26: 37 | F26: 34 | G26: 33 | H26: 34 | I26: 38 | J26: 34 | K26: 34 | M26: 3.5 | N26: 2.5 | O26: 34.5 | Q26: 2 | R26: 234.5 | S26: 22.2775 | V26: -4.534065437 | W26: -4.503617296 | X26: Отбраковывается | Y26: 19 | AA26: 19 | AH26: 19 | AK26: 19 | AR26: 19 | AU26: 19 | AZ26: 19 | BA26: 34.5 | BB26: 22.2775 | BC26: 22.2775
B27: 20 | C27: 34 | D27: 37 | E27: 39 | F27: 40 | G27: 36 | H27: 35 | I27: 38 | J27: 38 | L27: 36 | M27: 3 | N27: 3 | O27: 37 | Q27: 2 | R27: 413 | S27: 39.235 | T27: 37.44444134 | U27: 38.52329076 | V27: -0.3644264451 | W27: -0.1438790728 | Y27: 20 | AA27: 20 | AB27: 9.176969423 | AC27: 1369 | AH27: 20 | AI27: 3.206100313 | AK27: 20 | AL27: 37 | AM27: 1369 | AR27: 20 | AS27: 0.5065300426 | AU27: 20 | AV27: 0.1353466482 | AW27: 0.02433112585 | AX27: 0.7528922132 | AZ27: 20 | BA27: 37 | BB27: 39.235
B28: 21 | C28: 38 | D28: 39 | F28: 42 | G28: 36 | H28: 38 | I28: 36 | J28: 41 | K28: 37 | L28: 38 | M28: 3.666666667 | N28: 2.333333333 | O28: 38.33333333 | Q28: 2 | R28: 457 | S28: 43.415 | T28: 37.46081116 | U28: 38.56436121 | V28: -1.21183624 | W28: -0.9806046793 | Y28: 21 | AA28: 21 | AB28: 37.93800616 | AC28: 1469.444444 | AH28: 21 | AI28: 35.45236478 | AK28: 21 | AL28: 38.33333333 | AM28: 1469.444444 | AR28: 21 | AS28: 23.52869665 | AU28: 21 | AV28: 0.9946724027 | AW28: 0.03883060564 | AX28: 25.47921085 | AZ28: 21 | BA28: 38.33333333 | BB28: 43.415
B29: 22 | C29: 34 | D29: 37 | E29: 34 | G29: 33 | I29: 35 | J29: 34 | M29: 2.5 | N29: 1.5 | O29: 34.5 | Q29: 2 | R29: 362.9 | S29: 34.4755 | T29: 37.41374794 | U29: 38.44628366 | V29: 0.5980118241 | W29: 0.8027332501 | Y29: 22 | AA29: 22 | AB29: -7.144395067 | AC29: 1190.25 | AH29: 22 | AI29: 8.63330093 | AK29: 22 | AL29: 34.5 | AM29: 1190.25 | AR29: 22 | AS29: 15.76712289 | AU29: 22 | AV29: -0.3073642795 | AW29: 0.006237410639 | AX29: 15.14615692 | AZ29: 22 | BA29: 34.5 | BB29: 34.4755
B30: 23 | C30: 39 | D30: 36 | E30: 39 | F30: 36 | H30: 37 | J30: 39 | L30: 40 | M30: 2 | N30: 2 | O30: 38 | Q30: 2 | R30: 357.8 | S30: 33.991 | T30: 37.4567187 | U30: 38.5540936 | V30: 0.7053661939 | W30: 0.922474571 | Y30: 23 | AA30: 23 | AB30: -20.20873303 | AC30: 1444 | AH30: 23 | AI30: 12.01120612 | AK30: 23 | AL30: 38 | AM30: 1444 | AR30: 23 | AS30: 20.82182319 | AU30: 23 | AV30: -0.8174380856 | AW30: 0.03488946406 | AX30: 19.15205756 | AZ30: 23 | BA30: 38 | BB30: 33.991
B31: 24 | C31: 29 | E31: 30 | F31: 26 | H31: 28 | I31: 28 | J31: 30 | K31: 28 | L31: 28 | M31: 1.625 | N31: 2.375 | O31: 28.375 | Q31: 1 | R31: 312.5 | S31: 29.6875 | T31: 37.33854909 | U31: 38.25761627 | V31: 1.55719256 | W31: 1.732533896 | Y31: 24 | AA31: 24 | AB31: 28.23128422 | AC31: 805.140625 | AH31: 24 | AI31: 58.53855223 | AK31: 24 | AL31: 28.375 | AM31: 805.140625 | AR31: 24 | AS31: 73.44689293 | AU31: 24 | AV31: 0.9520889172 | AW31: 0.01203192024 | AX31: 75.33903884 | AZ31: 24 | BA31: 28.375 | BB31: 29.6875
B32: 25 | C32: 28 | D32: 26 | E32: 30 | F32: 24 | G32: 26 | H32: 26 | J32: 26 | K32: 29 | L32: 25 | M32: 3.333333333 | N32: 2.666666667 | O32: 26.66666667 | Q32: 1 | R32: 312.8 | S32: 29.716 | T32: 37.31757527 | U32: 38.20499476 | V32: 1.547123317 | W32: 1.716134378 | Y32: 25 | AA32: 25 | AB32: 41.22553092 | AC32: 711.1111111 | AH32: 25 | AI32: 57.78394653 | AK32: 25 | AL32: =IF(SUM(O32:P32)=0,"",(SUM(O32:P32)-$P$58*(S32-$S$58))) -> 26.66666667 | AM32: =IF(SUM(O32:P32)=0,"",POWER((SUM(O32:P32)-$P$58),2)) -> 711.1111111 | AR32: 25 | AS32: 72.06303197 | AU32: 25 | AV32: 1.404207613 | AW32: 0.02634506418 | AX32: 74.84510213 | AZ32: 25 | BA32: 26.66666667 | BB32: 29.716
B33: 26 | C33: 38 | D33: 38 | E33: 34 | F33: 38 | G33: 37 | H33: 37 | I33: 36 | J33: 37 | K33: 35 | L33: 36 | M33: 1.4 | N33: 2.6 | O33: 36.6 | Q33: 2 | R33: 458 | S33: 43.51 | T33: 37.4395304 | U33: =IF(SUM(O33:P33)=0,"",$AP$8*SUM(O33:P33)+($AO$10)) -> 38.51096962 | V33: -1.235502477 | W33: -1.010603509 | Y33: 26 | AA33: 26 | AB33: 27.91644452 | AC33: 1339.56 | AH33: 26 | AI33: 36.85060122 | AK33: 26 | AL33: 36.6 | AM33: 1339.56 | AR33: 26 | AS33: =IFERROR(POWER(S33-U33,2),"") -> 24.9903047 | AU33: 26 | AV33: 0.738816034 | AW33: 0.0206391269 | AX33: 26.44729764 | AZ33: 26 | BA33: 36.6 | BB33: 43.51
B34: 27 | C34: 33 | D34: 32 | E34: 30 | F34: 31 | G34: 32 | H34: 34 | J34: 32 | L34: 31 | M34: 2.125 | N34: 1.875 | O34: 31.875 | Q34: 1 | R34: 433 | S34: 41.135 | T34: 37.38151986 | U34: 38.36542621 | V34: -0.7639333216 | W34: -0.5598967759 | Y34: 27 | AA34: 27 | AB34: =IF(SUM(O34:P34)=0,"",(SUM(O34:P34)-$O$58)*(S34-$S$58)) -> -0.6312328732 | AC34: =IF(SUM(O34:P34)=0,"",POWER((SUM(O34:P34)-$P$58),2)) -> 1016.015625 | AH34: 27 | AI34: =IFERROR(POWER(S34-T34,2),"") -> 14.08861316 | AK34: 27 | AL34: 31.875 | AM34: 1016.015625 | AR34: 27 | AS34: 7.670538981 | AU34: 27 | AV34: -0.005203743624 | AW34: 3.535051614e-06 | AX34: 7.660127958 | AZ34: 27 | BA34: 31.875 | BB34: 41.135
B35: 28 | C35: 34 | E35: 36 | F35: 32 | G35: 37 | H35: 36 | K35: 34 | L35: 34 | M35: 2.285714286 | N35: 2.714285714 | O35: 34.71428571 | Q35: 2 | R35: 467 | S35: 44.365 | T35: 37.4163788 | U35: 38.45288427 | V35: -1.414229749 | W35: -1.195192757 | Y35: 28 | AA35: 28 | AB35: 18.64750003 | AC35: 1205.081633 | AH35: 28 | AI35: 48.2833366 | AK35: 28 | AL35: 34.71428571 | AM35: 1205.081633 | AR35: 28 | AS35: 34.9531124 | AU35: 28 | AV35: 0.5132699504 | AW35: 0.007323574851 | AX35: 35.97232873 | AZ35: 28 | BA35: 34.71428571 | BB35: 44.365
B36: 29 | C36: 28 | D36: 27 | E36: 31 | F36: 31 | G36: 29 | H36: 28 | J36: 32 | K36: 28 | L36: 33 | M36: 3.333333333 | N36: 2.666666667 | O36: 29.66666667 | Q36: 1 | R36: 377.4 | S36: 35.853 | T36: 37.35440735 | U36: 38.29740327 | V36: 0.3055764419 | W36: 0.4941603349 | Y36: 29 | AA36: 29 | AB36: 3.637587926 | AC36: 880.1111111 | AH36: 29 | AI36: 2.254224038 | AK36: 29 | AL36: 29.66666667 | AM36: 880.1111111 | AR36: 29 | AS36: 5.975107362 | AU36: 29 | AV36: =IFERROR((U36-$U$58)*(S36-$U$58),"") -> 0.1757578346 | AW36: =IFERROR(POWER((U36-$U$58),2),"") -> 0.004886444727 | AX36: =IFERROR(POWER((S36-$U$58),2),"") -> 6.321736587 | AZ36: 29 | BA36: 29.66666667 | BB36: 35.853
B37: 30 | E37: 35 | F37: 34 | J37: 33 | K37: 37 | L37: 36 | M37: 2 | N37: 2 | O37: 35 | Q37: 2 | R37: 366.1 | S37: 34.7795 | T37: 37.41988662 | U37: 38.46168508 | V37: 0.5373891011 | W37: 0.7443901883 | Y37: 30 | AA37: 30 | AB37: -7.699590577 | AC37: 1225 | AH37: 30 | AI37: 6.971641485 | AK37: 30 | AL37: 35 | AM37: 1225 | AR37: 30 | AS37: 13.55848698 | AU37: 30 | AV37: -0.3386124979 | AW37: 0.008907338786 | AX37: 12.87235464 | AZ37: 30 | BA37: 35 | BB37: 34.7795
B38: 31 | D38: 32 | E38: 34 | F38: 34 | G38: 30 | H38: 35 | J38: 30 | K38: 32 | L38: 32 | M38: 2.625 | N38: 2.375 | O38: 32.375 | Q38: 2 | R38: 353.7 | S38: 33.6015 | T38: 37.38765854 | U38: 38.38082763 | V38: 0.7705842479 | W38: 0.9661884221 | Y38: 31 | AA38: 31 | AB38: -1.254649047 | AC38: 1048.140625 | AH38: 31 | AI38: 14.3349965 | AK38: 31 | AL38: 32.375 | AM38: 1048.140625 | AR38: 31 | AS38: 22.84197259 | AU38: 31 | AV38: -0.06443964163 | AW38: 0.0001828240999 | AX38: 22.71291048 | AZ38: 31 | BA38: 32.375 | BB38: 33.6015
B39: 32 | C39: 30 | E39: 32 | G39: 30 | I39: 33 | J39: 30 | K39: 32 | L39: 30 | M39: 2 | N39: 1 | O39: 31 | Q39: 1 | R39: 454 | S39: 43.13 | T39: 37.37077717 | U39: 38.33847373 | V39: -1.172155457 | W39: -0.9686544991 | Y39: 32 | AA39: 32 | AB39: -5.995034659 | AC39: 961 | AH39: 32 | AI39: 33.16864762 | AK39: 32 | AL39: 31 | AM39: 961 | AR39: 32 | AS39: 22.95872404 | AU39: 32 | AV39: -0.1373211137 | AW39: 0.0008313221372 | AX39: 22.68325049 | AZ39: 32 | BA39: 31 | BB39: 43.13
B40: 33 | C40: 37 | D40: 34 | E40: 33 | F40: 32 | G40: 34 | H40: 36 | I40: 30 | J40: 32 | K40: 35 | L40: 33 | M40: 3.4 | N40: 3.6 | O40: 33.6 | Q40: 2 | R40: 423 | S40: 40.185 | T40: =IF(SUM(O40:P40)=0,"",$AF$8*SUM(O40:P40)+($AE$10)) -> 37.40269831 | U40: 38.41856111 | V40: -0.5662726038 | W40: -0.3571031198 | Y40: 33 | AA40: 33 | AB40: 4.36105881 | AC40: 1128.96 | AH40: 33 | AI40: 7.741202696 | AK40: 33 | AL40: 33.6 | AM40: 1128.96 | AR40: 33 | AS40: 3.120306363 | AU40: 33 | AV40: 0.09316538484 | AW40: 0.002627046742 | AX40: 3.304010086 | AZ40: 33 | BA40: =IF(SUM(O40:P40)=0,"",SUM(O40:P40)) -> 33.6 | BB40: 40.185
B41: 34 | C41: 34 | G41: 32 | H41: 30 | I41: 35 | J41: 32 | K41: 30 | L41: 34 | M41: 2.571428571 | N41: 2.428571429 | O41: 32.42857143 | Q41: 2 | R41: 398.8 | S41: 37.886 | T41: 37.38831626 | U41: 38.38247778 | V41: -0.101291916 | W41: 0.1003679014 | Y41: 34 | AA41: 34 | AB41: 0.1935833003 | AC41: 1051.612245 | AH41: 34 | AI41: 0.247689108 | AK41: 34 | AL41: 32.42857143 | AM41: 1051.612245 | AR41: 34 | AS41: 0.2464901872 | AU41: 34 | AV41: -0.007302090854 | AW41: 0.0002301713274 | AX41: 0.2316558342 | AZ41: 34 | BA41: 32.42857143 | BB41: 37.886
B42: 35 | D42: 36 | F42: 35 | G42: 34 | H42: 37 | I42: 31 | K42: 34 | L42: 36 | M42: 2.285714286 | N42: 3.714285714 | O42: 34.71428571 | Q42: 2 | R42: 448 | S42: 42.56 | T42: 37.4163788 | U42: 38.45288427 | V42: -1.046864106 | W42: -0.830294128 | Y42: 35 | AA42: 35 | AB42: 13.8263082 | AC42: 1205.081633 | AH42: 35 | AI42: 26.45683906 | AK42: 35 | AL42: 34.71428571 | AM42: 1205.081633 | AR42: 35 | AS42: 16.86839962 | AU42: 35 | AV42: 0.3588018632 | AW42: 0.007323574851 | AX42: 17.57867977 | AZ42: 35 | BA42: 34.71428571 | BB42: 42.56
B43: 36 | P43: =IFERROR(AVERAGE(C43:L43),"") ->  | X43: =IF(COUNT(V43:W43)=0,"",IF(V43>2,"Отбраковывается",IF(W43>2,"Отбраковывается",IF(V43<-2,"Отбраковывается",IF(W43<-2,"Отбраковывается",""))))) ->  | Y43: 36 | AA43: 36 | AH43: 36 | AK43: 36 | AR43: 36 | AU43: 36 | AZ43: 36
B44: 37 | X44: =IF(COUNT(V44:W44)=0,"",IF(V44>2,"Отбраковывается",IF(W44>2,"Отбраковывается",IF(V44<-2,"Отбраковывается",IF(W44<-2,"Отбраковывается",""))))) ->  | Y44: 37 | AA44: 37 | AH44: 37 | AK44: 37 | AR44: 37 | AU44: 37 | AZ44: 37
B45: 38 | Y45: 38 | AA45: 38 | AH45: 38 | AK45: 38 | AR45: 38 | AU45: 38 | AZ45: 38
B46: 39 | Y46: 39 | AA46: 39 | AH46: 39 | AK46: 39 | AR46: 39 | AU46: 39 | AZ46: 39
B47: 40 | Y47: 40 | AA47: 40 | AH47: 40 | AK47: 40 | AR47: 40 | AU47: 40 | AZ47: 40
B48: 41 | Y48: 41 | AA48: 41 | AH48: 41 | AK48: 41 | AR48: 41 | AU48: 41 | AZ48: 41
B49: 42 | Y49: 42 | AA49: 42 | AH49: 42 | AK49: 42 | AR49: 42 | AU49: 42 | AZ49: 42
B50: 43 | Y50: 43 | AA50: 43 | AH50: 43 | AK50: 43 | AR50: 43 | AU50: 43 | AZ50: 43
B51: 44 | Y51: 44 | AA51: 44 | AH51: 44 | AK51: 44 | AR51: 44 | AU51: 44 | AZ51: 44
B52: 45 | Y52: 45 | AA52: 45 | AH52: 45 | AK52: 45 | AR52: 45 | AU52: 45 | AZ52: 45
B53: 46 | Y53: 46 | AA53: 46 | AH53: 46 | AK53: 46 | AR53: 46 | AU53: 46 | AZ53: 46
B54: 47 | Y54: 47 | AA54: 47 | AH54: 47 | AK54: 47 | AR54: 47 | AU54: 47 | AZ54: 47
B55: 48 | Y55: 48 | AA55: 48 | AH55: 48 | AK55: 48 | AR55: 48 | AU55: 48 | AZ55: 48
B56: 49 | Y56: 49 | AA56: 49 | AH56: 49 | AK56: 49 | AR56: 49 | AU56: 49 | AZ56: 49
B57: 50 | Y57: 50 | AA57: 50 | AH57: 50 | AK57: 50 | AR57: 50 | AU57: 50 | AZ57: 50
O58: =IFERROR(IFERROR(SUM(P8:P57)/COUNT(P8:P57),SUM(O8:O57)/COUNT(O8:O57)),"") -> 32.04326531 | S58: =IFERROR(SUM(S8:S57)/COUNT(S8:S57),"") -> 37.38358571 | U58: =IFERROR(SUM(U8:U57)/COUNT(U8:U57),"") -> 38.36730638 | AB58: =IF(SUM(AB8:AB57)=0,"",SUM(AB8:AB57)) -> 420.0580424 | AC58: =IF(SUM(AC8:AC57)=0,"",SUM(AC8:AC57)) -> 34214.03084 | AH58: Sт | AI58: =IF(SQRT(SUM(AI8:AI57)/(COUNT(AI8:AI57)-2))=0,"",SQRT(SUM(AI8:AI57)/(COUNT(AI8:AI57)-2))) -> 4.913360936 | AL58: =IF(SUM(AL8:AL57)=0,"",SUM(AL8:AL57)) -> 1053.889286 | AM58: =IF(SUM(AM8:AM57)=0,"",SUM(AM8:AM57)) -> 34214.03084 | AR58: Sт | AS58: =IF(SQRT(SUM(AS8:AS57)/(COUNT(AS8:AS57)-2))=0,"",SQRT(SUM(AS8:AS57)/(COUNT(AS8:AS57)-2))) -> 4.94657928 | AV58: =IF(SUM(AV8:AV57)=0,"",SUM(AV8:AV57)) -> 12.9501264 | AW58: =IF(SUM(AW8:AW57)=0,"",SUM(AW8:AW57)) -> 0.5284723885 | AX58: =IF(SUM(AX8:AX57)=0,"",SUM(AX8:AX57)) -> 783.8998241
O59: ср.зн. H | S59: cр.зн Rф (Мпа) | AH59: Sп < 1,5 Sт | AR59: Sп < 1,5 Sт | AW59: =IFERROR(SQRT(AW58),"") -> 0.726961064 | AX59: =IFERROR(SQRT(AX58),"") -> 27.99821109
AH60: Sп | AI60: =IFERROR((AI58*1.5)-(SQRT(SUM(AI8:AI57)/(COUNT(AI8:AI57)-1))),"") -> 2.534061067 | AR60: Sп | AS60: =IFERROR((AS58*1.5)-(SQRT(SUM(AS8:AS57)/(COUNT(AS8:AS57)-1))),"") -> 2.551193395 | AW60: =IFERROR(AW59*AX59,"") -> 20.35360932
AU61: =IFERROR(AV58/AW60,"") -> 0.6362569997
AF62: ПОГРЕШНОСТЬ | AU62: r < 0,7
AF63: Sт | AG63: =IF(AS58=0,"",AS58) -> 4.94657928 | AH63: =IFERROR(AG63/AG64*100,"") -> 12.89269367 | AL63: < 12%
AF64: Rф | AG64: =IF(U58=0,"",U58) -> 38.36730638 | AL64: > 15%
AF66: Н | AG66: RH
AF67: 5 | AG67: =IFERROR($AO$10+$AP$8*$AF$67,"") -> 37.53759991
AF68: 10 | AG68: =IFERROR($AO$10+$AP$8*$AF$68,"") -> 37.6916141
AF69: 15 | AG69: =IFERROR($AO$10+$AP$8*$AF$69,"") -> 37.8456283
AF70: 20 | AG70: =IFERROR($AO$10+$AP$8*$AF$70,"") -> 37.9996425
AF71: 25 | AG71: =IFERROR($AO$10+$AP$8*$AF$71,"") -> 38.15365669
AF72: 30 | AG72: =IFERROR($AO$10+$AP$8*$AF$72,"") -> 38.30767089
AF73: 35 | AG73: =IFERROR($AO$10+$AP$8*$AF$73,"") -> 38.46168508
AF74: 40 | AG74: =IFERROR($AO$10+$AP$8*$AF$74,"") -> 38.61569928
AF75: 45 | AG75: =IFERROR($AO$10+$AP$8*$AF$75,"") -> 38.76971347
AF76: 50 | AG76: =IFERROR($AO$10+$AP$8*$AF$76,"") -> 38.92372767
